[Event "XX Gran Hotel Bali-A 2023"]
[Site "Benidorm"]
[Date "2023.12.04"]
[Round "5.11"]
[White "Goluch, Piotr"]
[Black "Kovacs, Zoltan"]
[Result "1-0"]
[ECO "E11"]
[WhiteElo "2309"]
[BlackElo "2146"]
[Annotator "RC"]
[PlyCount "91"]
[EventDate "2023.12.02"]
[EventType "swiss"]
[EventCountry "ESP"]
[SourceTitle "playchess.com"]
[Source "ChessBase"]
[SourceQuality "1"]
[TimeControl "5400+30"]

1. d4 {[%emt 0:00:11]} e6 {[%emt 0:03:14]} 2. c4 {[%emt 0:00:33]} Nf6 {[%emt 0:00:20]} 3. g3 {[%emt 0:00:17]} Bb4+ {[%emt 0:04:43]} 4. Nd2 {[%emt 0:00:31]} O-O {[%emt 0:03:12]} 5. Ngf3 {[%emt 0:03:26]} Re8 {[%emt 0:01:19]} 6. Bg2 {[%emt 0:00:55]} Bf8 {[%emt 0:05:17]} 7. O-O {[%emt 0:00:50]} d6 {[%emt 0:00:05]} 8. e4 {[%emt 0:02:16]} e5 {[%emt 0:00:23]} 9. d5 {[%emt 0:01:49]} Nbd7 {[%emt 0:00:45]} 10. Qc2 {[%emt 0:00:50]} a5 {[%emt 0:00:15]} 11. b3 {[%emt 0:00:21]} g6 {[%emt 0:01:02]} 12. Bb2 {[%emt 0:00:22]} c6 {[%emt 0:07:39]} 13. Ne1 {[%emt 0:02:53]} Qb6 {[%emt 0:01:57]} 14. a3 {[%emt 0:06:28]} Bh6 {[%emt 0:01:05]} 15. Bc3 {[%emt 0:03:16]} Bxd2 {[%emt 0:02:48]} 16. Bxd2 {[%emt 0:00:04]} Nc5 {[%emt 0:00:11]} 17. Rb1 {[%emt 0:00:17]} Ncxe4 {[%emt 0:03:39]} 18. Be3 {[%emt 0:09:35]} Qd8 {[%emt 0:02:26]} 19. Rd1 {[%emt 0:12:06]} cxd5 {[%emt 0:00:15]} 20. cxd5 {[%emt 0:00:52]} Bf5 {[%emt 0:02:32]} 21. Bxe4 {[%emt 0:08:17]} Bxe4 {[%emt 0:04:31]} 22. Qc4 {[%emt 0:00:10]} Rc8 {[%emt 0:06:33]} 23. Qb5 {[%emt 0:02:41]} Qd7 {[%emt 0:07:40]} 24. Qxa5 {[%emt 0:00:18]} Ra8 {[%emt 0:00:56]} 25. Qb4 {[%emt 0:00:22]} Nxd5 {[%emt 0:03:35]} 26. Qxe4 {[%emt 0:00:06]} Nc3 {[%emt 0:00:05]} 27. Qd3 {[%emt 0:00:29]} Nxd1 {[%emt 0:00:10]} 28. Qxd1 {[%emt 0:00:03]} Rxa3 {[%emt 0:00:13]} 29. Bg5 {[%emt 0:01:54]} Qe6 {[%emt 0:02:40]} 30. Nc2 {[%emt 0:00:49]} Ra5 {[%emt 0:01:14]} 31. b4 {[%emt 0:09:38]} Rd5 {[%emt 0:05:11]} 32. Qe2 {[%emt 0:00:43]} e4 {[%emt 0:01:14]} 33. h4 {[%emt 0:00:43]} Rd3 {[%emt 0:01:01]} 34. Ne1 {[%emt 0:04:52]} Rc3 {[%emt 0:05:14]} 35. Qb5 {[%emt 0:00:12]} d5 {[%emt 0:00:37]} 36. Qxb7 {[%emt 0:05:50]} d4 {[%emt 0:00:17]} 37. Ng2 {[%emt 0:00:07]} Qg4 {[%emt 0:12:44]} 38. Qd5 {[%emt 0:03:06]} Rd3 {[%emt 0:01:07]} 39. Qc6 {[%emt 0:03:33]} Rc8 {[%emt 0:02:45]} 40. Qb7 {[%emt 0:00:37]} Re8 {[%emt 0:00:42]} 41. Qb5 {[%emt 0:07:13]} Rc8 {[%emt 0:00:54]} 42. Nf4 {[%emt 0:00:55]} Rd1 {[%emt 0:00:53]} 43. Nd5 {[%emt 0:00:11]} Rxf1+ {[%emt 0:02:13]} 44. Qxf1 {[%emt 0:00:04]} Kg7 {[%emt 0:01:13]} 45. Qa1 {[%emt 0:01:49]} e3 {[%emt 0:00:29]} 46. Bxe3 {[%emt 0:00:08]} 1-0

[Event "XX Gran Hotel Bali-A 2023"]
[Site "Benidorm"]
[Date "2023.12.04"]
[Round "5.12"]
[White "Donate Moreno, Silvia"]
[Black "Utsab Chatterjee"]
[Result "1/2-1/2"]
[ECO "C88"]
[WhiteElo "2156"]
[BlackElo "2302"]
[Annotator "RC"]
[PlyCount "54"]
[EventDate "2023.12.02"]
[EventType "swiss"]
[EventCountry "ESP"]
[SourceTitle "playchess.com"]
[Source "ChessBase"]
[SourceQuality "1"]
[TimeControl "5400+30"]

1. e4 {[%emt 0:00:03]} e5 {[%emt 0:04:39]} 2. Nf3 {[%emt 0:00:56]} Nc6 {[%emt 0:00:10]} 3. Bb5 {[%emt 0:00:23]} a6 {[%emt 0:00:11]} 4. Ba4 {[%emt 0:00:09]} Nf6 {[%emt 0:00:11]} 5. O-O {[%emt 0:00:17]} Be7 {[%emt 0:00:16]} 6. Re1 {[%emt 0:00:27]} b5 {[%emt 0:00:11]} 7. Bb3 {[%emt 0:00:06]} O-O {[%emt 0:00:10]} 8. h3 {[%emt 0:00:36]} Bb7 {[%emt 0:00:13]} 9. c3 {[%emt 0:01:33]} d5 {[%emt 0:01:16]} 10. d3 {[%emt 0:06:21]} dxe4 {[%emt 0:03:28]} 11. dxe4 {[%emt 0:00:35]} Qxd1 {[%emt 0:00:11]} 12. Bxd1 {[%emt 1:25:04]} Bd6 {[%emt 0:04:27]} 13. Nbd2 {[%emt 0:00:00]} Nd8 {[%emt 0:01:00]} 14. Bc2 {[%emt 0:00:00]} Ne6 {[%emt 0:00:12]} 15. Nb3 {[%emt 0:00:00]} Rab8 {[%emt 0:05:29]} 16. a4 {[%emt 0:00:00]} h6 {[%emt 0:11:46]} 17. Nh2 {[%emt 0:00:00]} c5 {[%emt 0:09:54]} 18. axb5 {[%emt 0:00:00]} axb5 {[%emt 0:00:02]} 19. Ng4 {[%emt 0:00:00]} Nxg4 {[%emt 0:08:11]} 20. hxg4 {[%emt 0:00:00]} c4 {[%emt 0:00:07]} 21. Na5 {[%emt 0:00:00]} Ba8 {[%emt 0:02:25]} 22. Be3 {[%emt 0:00:00]} Bc5 {[%emt 0:06:14]} 23. b3 {[%emt 0:00:00]} Bxe3 {[%emt 0:02:30]} 24. Rxe3 {[%emt 0:00:00]} cxb3 {[%emt 0:00:07]} 25. Bxb3 {[%emt 0:00:00]} Nc5 {[%emt 0:00:11]} 26. Bd5 {[%emt 0:07:00]} Rfc8 {[%emt 0:00:48]} 27. Rb1 {[%emt 0:00:00]} Na4 {[%emt 0:18:56]} 1/2-1/2

[Event "XX Gran Hotel Bali-A 2023"]
[Site "Benidorm"]
[Date "2023.12.04"]
[Round "5.13"]
[White "Azaryan, Tigran"]
[Black "Carrera Perez, Francisco"]
[Result "1-0"]
[ECO "C02"]
[WhiteElo "2115"]
[BlackElo "2237"]
[Annotator "ChessBase"]
[PlyCount "83"]
[EventDate "2023.12.02"]
[EventType "swiss"]
[EventCountry "ESP"]
[SourceTitle "playchess.com"]
[Source "ChessBase"]
[SourceQuality "1"]
[TimeControl "5400+30"]

1. e4 {[%emt 0:02:51]} e6 {[%emt 0:00:09]} 2. d4 {[%emt 0:00:06]} d5 {[%emt 0:00:12]} 3. e5 {[%emt 0:00:12]} c5 {[%emt 0:00:21]} 4. c3 {[%emt 0:00:07]} Nc6 {[%emt 0:00:15]} 5. Nf3 {[%emt 0:00:10]} Nh6 {[%emt 0:00:59]} 6. Bxh6 {[%emt 0:00:13]} gxh6 {[%emt 0:00:07]} 7. Bb5 {[%emt 0:00:03]} Bg7 {[%emt 0:04:37]} 8. O-O {[%emt 0:00:52]} O-O {[%emt 0:00:39]} 9. Nbd2 {[%emt 0:07:45]} cxd4 {[%emt 0:02:04]} 10. cxd4 {[%emt 0:00:18]} Bd7 {[%emt 0:02:06]} 11. Bxc6 {[%emt 0:05:25]} Bxc6 {[%emt 0:00:08]} 12. Qe2 {[%emt 0:01:27]} Qb6 {[%emt 0:02:04]} 13. Rfb1 {[%emt 0:00:23]} f6 {[%emt 0:07:38]} 14. exf6 {[%emt 0:04:31]} Rxf6 {[%emt 0:00:13]} 15. Nf1 {[%emt 0:06:58]} Raf8 {[%emt 0:06:53]} 16. Ng3 {[%emt 0:03:31]} Bb5 {[%emt 0:03:33]} 17. Qe3 {[%emt 0:01:22]} Rf4 {[%emt 0:06:16]} 18. Rd1 {[%emt 0:10:33]} Be8 {[%emt 0:00:29]} 19. Rd2 {[%emt 0:03:50]} Bg6 {[%emt 0:04:34]} 20. Ne5 {[%emt 0:02:38]} Qd6 {[%emt 0:02:24]} 21. Re1 {[%emt 0:05:24]} h5 {[%emt 0:01:38]} 22. f3 {[%emt 0:03:48]} h4 {[%emt 0:02:13]} 23. Ne2 {[%emt 0:00:59]} R4f5 {[%emt 0:02:27]} 24. f4 {[%emt 0:02:28]} Bh5 {[%emt 0:04:20]} 25. g4 {[%emt 0:01:55]} hxg3 {[%emt 0:01:28]} 26. Nxg3 {[%emt 0:00:05]} Bh6 {[%emt 0:06:12]} 27. Nxf5 {[%emt 0:02:01]} Rxf5 {[%emt 0:00:06]} 28. Rg2+ {[%emt 0:01:11]} Kh8 {[%emt 0:00:50]} 29. Nd3 {[%emt 0:05:37]} Bf7 {[%emt 0:04:58]} 30. Rc1 {[%emt 0:02:40]} Bg6 {[%emt 0:01:42]} 31. Rc8+ {[%emt 0:06:03]} Kg7 {[%emt 0:00:09]} 32. Qc1 {[%emt 0:01:02]} Bxf4 {[%emt 0:02:32]} 33. Nxf4 {[%emt 0:00:05]} Rxf4 {[%emt 0:02:17]} 34. Qc7+ {[%emt 0:00:04]} Qxc7 {[%emt 0:00:06]} 35. Rxc7+ {[%emt 0:00:04]} Kf6 {[%emt 0:00:07]} 36. Rf2 {[%emt 0:00:20]} Kf5 {[%emt 0:00:10]} 37. Rxb7 {[%emt 0:00:17]} Ke4 {[%emt 0:02:51]} 38. Rxf4+ {[%emt 0:00:05]} Kxf4 {[%emt 0:00:04]} 39. Rxa7 {[%emt 0:00:08]} Ke3 {[%emt 0:00:10]} 40. b4 {[%emt 0:03:16]} Kxd4 {[%emt 0:01:52]} 41. b5 {[%emt 0:00:05]} Kc5 {[%emt 0:01:25]} 42. a4 {[%emt 0:00:07]} 1-0

[Event "XX Gran Hotel Bali-A 2023"]
[Site "Benidorm"]
[Date "2023.12.04"]
[Round "5.14"]
[White "Madina Yadarola, Martin"]
[Black "Mingarro Carceller, Sergi"]
[Result "0-1"]
[ECO "B67"]
[WhiteElo "2093"]
[BlackElo "2253"]
[Annotator "RC"]
[PlyCount "58"]
[EventDate "2023.12.02"]
[EventType "swiss"]
[EventCountry "ESP"]
[SourceTitle "playchess.com"]
[Source "ChessBase"]
[SourceQuality "1"]
[TimeControl "5400+30"]

1. e4 {[%emt 0:00:08]} c5 {[%emt 0:00:16]} 2. Nf3 {[%emt 0:00:11]} Nc6 {[%emt 0:00:07]} 3. d4 {[%emt 0:00:28]} cxd4 {[%emt 0:00:12]} 4. Nxd4 {[%emt 0:00:08]} Nf6 {[%emt 0:00:08]} 5. Nc3 {[%emt 0:00:11]} d6 {[%emt 0:00:08]} 6. Bg5 {[%emt 0:00:50]} e6 {[%emt 0:00:26]} 7. Qd2 {[%emt 0:00:37]} a6 {[%emt 0:00:28]} 8. O-O-O {[%emt 0:00:45]} Bd7 {[%emt 0:00:31]} 9. f3 {[%emt 0:02:59]} Nxd4 {[%emt 0:01:34]} 10. Qxd4 {[%emt 0:00:13]} Be7 {[%emt 0:00:06]} 11. h4 {[%emt 0:00:47]} Qc7 {[%emt 0:03:23]} 12. Kb1 {[%emt 0:01:00]} b5 {[%emt 0:03:24]} 13. g4 {[%emt 0:02:56]} b4 {[%emt 0:18:05]} 14. Ne2 {[%emt 0:02:19]} O-O {[%emt 0:12:55]} 15. Qd2 {[%emt 0:11:28]} Rfc8 {[%emt 0:05:25]} 16. Nd4 {[%emt 0:01:39]} a5 {[%emt 0:13:12]} 17. Bd3 {[%emt 0:06:07]} a4 {[%emt 0:04:37]} 18. Be3 {[%emt 0:06:08]} e5 {[%emt 0:13:58]} 19. Nf5 {[%emt 0:07:27]} Bxf5 {[%emt 0:03:59]} 20. gxf5 {[%emt 0:09:50]} d5 {[%emt 0:04:56]} 21. Bg5 {[%emt 0:04:54]} dxe4 {[%emt 0:04:32]} 22. Bxe4 {[%emt 0:00:10]} Nxe4 {[%emt 0:00:25]} 23. fxe4 {[%emt 0:00:10]} b3 {[%emt 0:00:58]} 24. cxb3 {[%emt 0:07:11]} axb3 {[%emt 0:00:25]} 25. Rc1 {[%emt 0:03:07]} Qb7 {[%emt 0:07:12]} 26. Rxc8+ {[%emt 0:15:09]} Rxc8 {[%emt 0:00:02]} 27. Qd3 {[%emt 0:01:28]} Rd8 {[%emt 0:00:54]} 28. Qe2 {[%emt 0:01:59]} Bxg5 {[%emt 0:00:46]} 29. hxg5 {[%emt 0:00:06]} Rd2 {[%emt 0:00:04]} 0-1

[Event "XX Gran Hotel Bali-A 2023"]
[Site "Benidorm"]
[Date "2023.12.04"]
[Round "5.17"]
[White "Rodriguez Redondo, Adhara"]
[Black "Mitrabha, Guha"]
[Result "0-1"]
[ECO "B13"]
[WhiteElo "2123"]
[BlackElo "2516"]
[Annotator "RC"]
[PlyCount "80"]
[EventDate "2023.12.02"]
[EventType "swiss"]
[EventCountry "ESP"]
[SourceTitle "playchess.com"]
[Source "ChessBase"]
[SourceQuality "1"]
[TimeControl "5400+30"]

1. e4 {[%emt 0:03:54]} c6 {[%emt 0:03:02]} 2. d4 {[%emt 0:00:10]} d5 {[%emt 0:00:05]} 3. exd5 {[%emt 0:00:04]} cxd5 {[%emt 0:00:05]} 4. Bd3 {[%emt 0:00:08]} Nc6 {[%emt 0:00:06]} 5. c3 {[%emt 0:00:07]} Nf6 {[%emt 0:00:04]} 6. Nf3 {[%emt 0:00:04]} Bg4 {[%emt 0:00:07]} 7. Bf4 {[%emt 0:00:15]} e6 {[%emt 0:00:08]} 8. Nbd2 {[%emt 0:00:43]} Bd6 {[%emt 0:00:07]} 9. Bxd6 {[%emt 0:00:05]} Qxd6 {[%emt 0:00:02]} 10. h3 {[%emt 0:00:12]} Bh5 {[%emt 0:00:02]} 11. O-O {[%emt 0:00:10]} O-O {[%emt 0:00:05]} 12. Re1 {[%emt 0:00:05]} Rab8 {[%emt 0:00:02]} 13. a4 {[%emt 0:04:07]} Qc7 {[%emt 0:01:52]} 14. Qb1 {[%emt 0:04:33]} Bxf3 {[%emt 0:00:50]} 15. Nxf3 {[%emt 0:00:26]} g6 {[%emt 0:00:02]} 16. Qc1 {[%emt 0:09:11]} Kg7 {[%emt 0:00:51]} 17. Ne5 {[%emt 0:09:57]} Nxe5 {[%emt 0:05:21]} 18. dxe5 {[%emt 0:01:20]} Nd7 {[%emt 0:00:02]} 19. Qf4 {[%emt 0:00:46]} Nc5 {[%emt 0:00:29]} 20. Bf1 {[%emt 0:03:34]} Qe7 {[%emt 0:03:20]} 21. c4 {[%emt 0:03:55]} Rfd8 {[%emt 0:02:13]} 22. cxd5 {[%emt 0:04:15]} Rxd5 {[%emt 0:00:03]} 23. Bc4 {[%emt 0:02:23]} Rd7 {[%emt 0:00:27]} 24. b4 {[%emt 0:02:31]} Na6 {[%emt 0:01:14]} 25. Bxa6 {[%emt 0:03:19]} bxa6 {[%emt 0:01:55]} 26. Re4 {[%emt 0:01:52]} Rdb7 {[%emt 0:00:17]} 27. Rb1 {[%emt 0:03:22]} a5 {[%emt 0:00:03]} 28. b5 {[%emt 0:07:56]} a6 {[%emt 0:00:14]} 29. Qd2 {[%emt 0:01:36]} axb5 {[%emt 0:00:17]} 30. Qxa5 {[%emt 0:04:55]} b4 {[%emt 0:00:13]} 31. Qa6 {[%emt 0:00:36]} b3 {[%emt 0:01:26]} 32. Qd6 {[%emt 0:01:36]} Qe8 {[%emt 0:00:20]} 33. Rb2 {[%emt 0:02:32]} Qc8 {[%emt 0:01:13]} 34. Kh2 {[%emt 0:02:08]} Qc3 {[%emt 0:11:53]} 35. Qa3 {[%emt 0:03:06]} Ra8 {[%emt 0:02:19]} 36. g3 {[%emt 0:03:36]} Ra5 {[%emt 0:01:22]} 37. Kg1 {[%emt 0:07:10]} Rd5 {[%emt 0:00:26]} 38. Re3 {[%emt 0:01:46]} Rd1+ {[%emt 0:00:02]} 39. Kh2 {[%emt 0:00:17]} Qc6 {[%emt 0:00:23]} 40. f3 {[%emt 0:01:23]} Qc1 {[%emt 0:00:02]} 0-1

[Event "XX Gran Hotel Bali-A 2023"]
[Site "Benidorm"]
[Date "2023.12.04"]
[Round "5.18"]
[White "Cruz Lledo, Pablo"]
[Black "Aakash Sharadchandra, Dalvi"]
[Result "1/2-1/2"]
[ECO "D00"]
[WhiteElo "2368"]
[BlackElo "2114"]
[Annotator "RC"]
[PlyCount "52"]
[EventDate "2023.12.02"]
[EventType "swiss"]
[EventCountry "ESP"]
[SourceTitle "playchess.com"]
[Source "ChessBase"]
[SourceQuality "1"]
[TimeControl "5400+30"]

1. d4 {[%emt 0:03:39]} Nf6 {[%emt 0:00:06]} 2. Bf4 {[%emt 0:00:10]} d5 {[%emt 0:00:22]} 3. e3 {[%emt 0:00:35]} c5 {[%emt 0:00:09]} 4. c3 {[%emt 0:01:31]} Nc6 {[%emt 0:00:06]} 5. Nd2 {[%emt 0:00:06]} Bf5 {[%emt 0:01:06]} 6. Be2 {[%emt 0:09:58]} Qb6 {[%emt 0:02:22]} 7. Qb3 {[%emt 0:00:09]} c4 {[%emt 0:00:11]} 8. Qxb6 {[%emt 0:00:09]} axb6 {[%emt 0:00:07]} 9. a3 {[%emt 0:00:05]} b5 {[%emt 0:00:20]} 10. Rc1 {[%emt 0:00:08]} e6 {[%emt 0:00:18]} 11. f3 {[%emt 0:01:20]} h5 {[%emt 0:07:59]} 12. Bd1 {[%emt 0:00:15]} Be7 {[%emt 0:02:06]} 13. Ne2 {[%emt 0:00:13]} h4 {[%emt 0:04:13]} 14. h3 {[%emt 0:07:38]} Kd7 {[%emt 0:07:22]} 15. Bc2 {[%emt 0:00:47]} Bxc2 {[%emt 0:00:25]} 16. Rxc2 {[%emt 0:00:05]} Nh5 {[%emt 0:02:25]} 17. Bh2 {[%emt 0:03:36]} f5 {[%emt 0:04:47]} 18. e4 {[%emt 0:13:48]} g5 {[%emt 0:01:16]} 19. Nf1 {[%emt 0:09:27]} f4 {[%emt 0:07:42]} 20. Nd2 {[%emt 0:01:44]} Bd8 {[%emt 0:07:41]} 21. Kd1 {[%emt 0:00:43]} Bb6 {[%emt 0:00:29]} 22. Re1 {[%emt 0:00:34]} Rhe8 {[%emt 0:01:26]} 23. Bg1 {[%emt 0:00:27]} Kc7 {[%emt 0:00:34]} 24. Nc1 {[%emt 0:00:48]} Rad8 {[%emt 0:21:59]} 25. Na2 {[%emt 0:06:29]} Nf6 {[%emt 0:04:56]} 26. e5 {[%emt 0:10:39]} Nh5 {[%emt 0:01:20]} 1/2-1/2

[Event "XX Gran Hotel Bali-A 2023"]
[Site "Benidorm"]
[Date "2023.12.04"]
[Round "5.19"]
[White "Meszaros, Andras"]
[Black "Luque Saiz, Andres"]
[Result "1/2-1/2"]
[ECO "B10"]
[WhiteElo "2114"]
[BlackElo "2349"]
[Annotator "RC"]
[PlyCount "65"]
[EventDate "2023.12.02"]
[EventType "swiss"]
[EventCountry "ESP"]
[SourceTitle "playchess.com"]
[Source "ChessBase"]
[SourceQuality "1"]
[TimeControl "5400+30"]

1. e4 {[%emt 0:00:44]} c6 {[%emt 0:00:27]} 2. Nf3 {[%emt 0:00:22]} d5 {[%emt 0:00:09]} 3. exd5 {[%emt 0:00:03]} cxd5 {[%emt 0:00:08]} 4. Ne5 {[%emt 0:00:19]} Nc6 {[%emt 0:00:31]} 5. Bb5 {[%emt 0:00:32]} Bd7 {[%emt 0:00:09]} 6. Bxc6 {[%emt 0:00:17]} Bxc6 {[%emt 0:00:55]} 7. d4 {[%emt 0:00:10]} Nf6 {[%emt 0:01:34]} 8. O-O {[%emt 0:00:13]} e6 {[%emt 0:00:46]} 9. c3 {[%emt 0:01:35]} Be7 {[%emt 0:01:14]} 10. Bg5 {[%emt 0:00:13]} O-O {[%emt 0:00:58]} 11. Nd2 {[%emt 0:00:07]} Nd7 {[%emt 0:08:53]} 12. Bxe7 {[%emt 0:00:18]} Qxe7 {[%emt 0:00:03]} 13. Re1 {[%emt 0:01:58]} f6 {[%emt 0:07:50]} 14. Nxd7 {[%emt 0:00:09]} Bxd7 {[%emt 0:01:07]} 15. f4 {[%emt 0:00:17]} Qd6 {[%emt 0:00:48]} 16. Qg4 {[%emt 0:03:09]} Rae8 {[%emt 0:09:13]} 17. Qg3 {[%emt 0:00:43]} a5 {[%emt 0:02:18]} 18. Re3 {[%emt 0:05:48]} Re7 {[%emt 0:01:42]} 19. Rae1 {[%emt 0:00:13]} a4 {[%emt 0:04:39]} 20. f5 {[%emt 0:29:53]} Qb6 {[%emt 0:04:48]} 21. fxe6 {[%emt 0:01:31]} Rxe6 {[%emt 0:00:24]} 22. Rxe6 {[%emt 0:00:14]} Bxe6 {[%emt 0:00:04]} 23. b3 {[%emt 0:02:41]} axb3 {[%emt 0:12:02]} 24. Nxb3 {[%emt 0:06:55]} Re8 {[%emt 0:12:48]} 25. h3 {[%emt 0:00:21]} Qc6 {[%emt 0:04:44]} 26. Kh2 {[%emt 0:02:42]} b6 {[%emt 0:01:32]} 27. Re3 {[%emt 0:00:44]} Bf7 {[%emt 0:05:32]} 28. Rxe8+ {[%emt 0:00:55]} Bxe8 {[%emt 0:00:05]} 29. Nd2 {[%emt 0:01:34]} h6 {[%emt 0:03:15]} 30. Qd3 {[%emt 0:00:26]} Qd6+ {[%emt 0:05:10]} 31. Qg3 {[%emt 0:00:07]} Qc6 {[%emt 0:00:54]} 32. Qd3 {[%emt 0:07:20]} Qd6+ {[%emt 0:00:04]} 33. Qg3 {[%emt 0:04:39]} 1/2-1/2

[Event "XX Gran Hotel Bali-A 2023"]
[Site "Benidorm"]
[Date "2023.12.04"]
[Round "5.20"]
[White "Gaurav Rajesh Zagade"]
[Black "Ingunza Curro, Andres"]
[Result "1-0"]
[ECO "D35"]
[WhiteElo "2099"]
[BlackElo "2328"]
[Annotator "RC"]
[PlyCount "131"]
[EventDate "2023.12.02"]
[EventType "swiss"]
[EventCountry "ESP"]
[SourceTitle "playchess.com"]
[Source "ChessBase"]
[SourceQuality "1"]
[TimeControl "5400+30"]

1. d4 {[%emt 0:00:03]} Nf6 {[%emt 0:07:59]} 2. c4 {[%emt 0:00:12]} e6 {[%emt 0:00:46]} 3. g3 {[%emt 0:00:12]} d5 {[%emt 0:00:07]} 4. Nf3 {[%emt 0:00:11]} h6 {[%emt 0:00:31]} 5. Bg2 {[%emt 0:00:56]} Bd6 {[%emt 0:00:03]} 6. O-O {[%emt 0:01:01]} O-O {[%emt 0:02:10]} 7. Nc3 {[%emt 0:01:12]} Nc6 {[%emt 0:00:12]} 8. cxd5 {[%emt 0:10:30]} exd5 {[%emt 0:00:42]} 9. Nb5 {[%emt 0:07:42]} Re8 {[%emt 0:03:55]} 10. Nxd6 {[%emt 0:01:21]} cxd6 {[%emt 0:02:17]} 11. e3 {[%emt 0:03:56]} Bf5 {[%emt 0:02:09]} 12. Ne1 {[%emt 0:02:23]} Rc8 {[%emt 0:03:20]} 13. Bd2 {[%emt 0:01:58]} Qb6 {[%emt 0:06:32]} 14. Bc3 {[%emt 0:04:22]} a5 {[%emt 0:15:41]} 15. Nd3 {[%emt 0:03:15]} g5 {[%emt 0:07:52]} 16. Re1 {[%emt 0:04:42]} Qd8 {[%emt 0:04:17]} 17. a4 {[%emt 0:05:12]} Ne4 {[%emt 0:04:11]} 18. f3 {[%emt 0:09:25]} Nxc3 {[%emt 0:16:47]} 19. bxc3 {[%emt 0:00:06]} Ne7 {[%emt 0:00:35]} 20. Qd2 {[%emt 0:05:06]} Qc7 {[%emt 0:02:46]} 21. Ra3 {[%emt 0:06:20]} Bg6 {[%emt 0:02:45]} 22. Nf2 {[%emt 0:04:19]} Kg7 {[%emt 0:04:38]} 23. Bh3 {[%emt 0:01:05]} Rb8 {[%emt 0:00:22]} 24. Bf1 {[%emt 0:00:48]} Ng8 {[%emt 0:01:04]} 25. Bb5 {[%emt 0:00:48]} Re6 {[%emt 0:01:02]} 26. Raa1 {[%emt 0:05:13]} Nf6 {[%emt 0:01:09]} 27. Rac1 {[%emt 0:08:27]} Re7 {[%emt 0:04:41]} 28. c4 {[%emt 0:00:28]} dxc4 {[%emt 0:00:57]} 29. Rxc4 {[%emt 0:00:15]} Qb6 {[%emt 0:00:25]} 30. Kg2 {[%emt 0:03:33]} d5 {[%emt 0:00:32]} 31. Rc5 {[%emt 0:00:22]} g4 {[%emt 0:01:26]} 32. fxg4 {[%emt 0:00:22]} Be4+ {[%emt 0:00:39]} 33. Kg1 {[%emt 0:00:32]} Qe6 {[%emt 0:00:24]} 34. h3 {[%emt 0:00:35]} Qd6 {[%emt 0:01:02]} 35. Kh2 {[%emt 0:00:08]} h5 {[%emt 0:00:35]} 36. gxh5 {[%emt 0:00:46]} Rh8 {[%emt 0:01:12]} 37. Bd3 {[%emt 0:00:46]} Rxh5 {[%emt 0:02:09]} 38. Bxe4 {[%emt 0:00:20]} Rxe4 {[%emt 0:00:30]} 39. Qe2 {[%emt 0:04:39]} Rh6 {[%emt 0:00:43]} 40. Qf3 {[%emt 0:01:40]} Rg6 {[%emt 0:00:24]} 41. Rg1 {[%emt 0:01:25]} Re8 {[%emt 0:00:45]} 42. Rxa5 {[%emt 0:00:43]} Qa3 {[%emt 0:00:29]} 43. Nd1 {[%emt 0:00:48]} Rh8 {[%emt 0:00:30]} 44. Rf1 {[%emt 0:00:43]} Qd3 {[%emt 0:00:29]} 45. Rb5 {[%emt 0:00:46]} Ng4+ {[%emt 0:00:33]} 46. Kg1 {[%emt 0:00:29]} Nf6 {[%emt 0:00:02]} 47. Kg2 {[%emt 0:00:46]} Qc2+ {[%emt 0:00:21]} 48. Rf2 {[%emt 0:00:17]} Qxa4 {[%emt 0:00:29]} 49. Rxb7 {[%emt 0:00:26]} Qc6 {[%emt 0:00:23]} 50. Re7 {[%emt 0:00:35]} Qc8 {[%emt 0:00:46]} 51. Qf5 {[%emt 0:00:27]} Qc1 {[%emt 0:00:31]} 52. Nb2 {[%emt 0:00:51]} Kf8 {[%emt 0:00:46]} 53. Nd3 {[%emt 0:03:33]} Rxg3+ {[%emt 0:00:50]} 54. Kxg3 {[%emt 0:00:00]} Qg1+ {[%emt 0:00:01]} 55. Kf3 {[%emt 0:00:00]} Qd1+ {[%emt 0:00:40]} 56. Kf4 {[%emt 0:00:00]} Rh4+ {[%emt 0:00:37]} 57. Ke5 {[%emt 0:00:00]} Rh5 {[%emt 0:00:34]} 58. Kxf6 {[%emt 0:00:12]} Rxf5+ {[%emt 0:00:14]} 59. Rxf5 {[%emt 0:00:09]} Qxd3 {[%emt 0:00:03]} 60. Rxf7+ {[%emt 0:00:08]} Ke8 {[%emt 0:00:17]} 61. Re5+ {[%emt 0:00:33]} Kd8 {[%emt 0:00:01]} 62. Rxd5+ {[%emt 0:00:35]} Kc8 {[%emt 0:00:01]} 63. Rg5 {[%emt 0:01:17]} Qa6+ {[%emt 0:00:43]} 64. Kg7 {[%emt 0:00:39]} Qe6 {[%emt 0:00:12]} 65. Rh5 {[%emt 0:00:21]} Qe8 {[%emt 0:01:04]} 66. Rh8 {[%emt 0:00:18]} 1-0